Cogmind - Beta 13 @@@ ROGUE MODE // 2024.04.07 @ 16:10:33 Player: Vriska Result: Destroyed by G-34 Mercenary with Small Laser Performance ------------- Evolutions (0) 0 Regions Visited (1) 200 Robots Destroyed (4) 20 Value Destroyed (160) 160 Prototype IDs (2) 40 Alien Tech Used (0) 0 Bonus (0) 0 TOTAL SCORE: 420 Bonus ------- None Cogmind --------- Core Integrity 0/250 Matter 241/300 Energy 64/100 System Corruption 0% Temperature Cool (6) Movement Core (100) Ox1 Location -10/Materials Parts ------- > --- POWER (1) -------- (None) > --- PROPULSION (2) --- (None) > --- UTILITY (2) ------ Sensor Array Seismic Detector > --- WEAPON (2) ------- Datajack Datajack > --- INVENTORY (5) ---- Datajack Datajack Datajack Peak State ------------ > --- POWER ------------ Ion Engine > --- PROPULSION ------- Light Treads Light Treads > --- UTILITY ---------- Small Storage Unit > --- WEAPON ----------- Light Assault Rifle Light Assault Rifle > --- INVENTORY -------- Light Ion Engine Assault Rifle [Rating: 6] Favorites ----------- Power Ion Engine Engine Ion Engine Propulsion Light Treads Treads Light Treads Leg Aluminum Leg Wheel Wheel Utility Small Storage Unit Device Seismic Detector Storage Small Storage Unit Weapon Light Assault Rifle Ballistic Gun Light Assault Rifle Special Weapon Mining Laser Special Melee Weapon Datajack Build | -11 -10 ------- Run | Yrd Mat Slots Evolved . | . . Power . | . . Propulsion . | . . Utility . | . . Weapon . | . . Parts Attached 25 | 15 10 Power 3 | 3 . Engine 3 | 3 . Core . | . . Reactor . | . . Propulsion 6 | 6 . Treads 2 | 2 . Leg 2 | 2 . Wheel 2 | 2 . Hover . | . . Flight . | . . Utility 3 | 1 2 Device 2 | . 2 Storage 1 | 1 . Processor . | . . Hackware . | . . Protection . | . . Artifact . | . . Weapon 13 | 5 8 Energy Gun . | . . Energy Cannon . | . . Ballistic Gun 4 | 4 . Ballistic Cannon . | . . Launcher . | . . Special Weapon 3 | 1 2 Impact Weapon . | . . Slashing Weapon . | . . Piercing Weapon . | . . Special Melee Weapon 6 | . 6 Unidentified Prototypes . | . . Parts Lost 12 | 5 7 Power 2 | 1 1 Propulsion 4 | 2 2 Utility 1 | . 1 Weapon 5 | 2 3 Highest Loss Streak 3 | 3 3 To Critical Strikes . | . . Average Slot Usage (%) 66 | . 66 Engine 7 | . 7 Leg 24 | . 24 Storage 12 | . 12 Ballistic Gun 8 | . 8 Special Weapon 2 | . 2 Special Melee Weapon 8 | . 8 Naked Turns . | . . Heaviest Build 13 | 13 10 Greatest Support 40 | 40 20 Greatest Overweight (x) 2 | 2 1 Average Overweight (x) . | . . Largest Inventory Capacity 8 | 8 8 Average Capacity 7 | 7 7 Most Carried 5 | 4 5 Average Carried 1 | 1 1 Final Capacity 8 | 8 5 Final Carried 3 | . 3 Class Distribution -------------------- 100% | Mutant Dominant Class ---------------- Mutant | -10/Materials Resources | -11 -10 ----------- Run | Yrd Mat Matter Collected 400 | 313 87 Remotely . | . . Salvage Created 126 | 39 87 Parts 2 | . 2 Haulers Intercepted . | . . Recyclers Shooed . | . . Parts Field Recycled . | . . Retrieved Matter . | . . Parts Self-Destructed . | . . Prevented . | . . Kills | -11 -10 ------- Run | Yrd Mat Combat Hostiles Destroyed 6 | 4 2 Guns 6 | 4 2 Classes Destroyed 4 | 2 2 Operator 1 | . 1 Grunt 2 | . 2 Demolisher 1 | 1 . Assembled 3 | 3 . Best Kill Streak 3 | 3 2 Combat Bots Only 3 | 3 1 Max Kills in Single Turn 1 | 1 1 Gunslinging . | . . Exploded . | . . Melee . | . . Uniques/NPCs Destroyed . | . . Combat | -11 -10 -------- Run | Yrd Mat Hostile Shots Fired 107 | 58 49 Missed 28 | 14 14 Damage Taken 1311 | 892 419 Core 255 | 150 105 Absorbed by Shields . | . . Core Remaining (%) 40 | 40 . Volleys Fired 59 | 39 20 Largest 2 | 2 2 Hottest 120 | 40 120 Shots Fired 66 | 43 23 Gun 63 | 43 20 Cannon . | . . Launcher . | . . Special 3 | . 3 Kinetic 63 | 43 20 Thermal 3 | . 3 Explosive . | . . Electromagnetic . | . . Robot Hit Streak 5 | 4 5 Robot Miss Streak 6 | 6 2 Penetration Max . | . . Secondary Targets . | . . Shots Hit Robots 49 | 21 28 Core Hits 24 | 14 10 Critical Kills . | . . Critical Parts Destroyed 1 | . 1 Critical Strikes 1 | . 1 Destroy 1 | . 1 Melee Attacks 13 | . 13 Impact . | . . Slashing . | . . Piercing . | . . Sneak Attacks 7 | . 7 Combat Hostiles . | . . Follow-up Attacks . | . . Damage Inflicted 341 | 187 154 Guns 315 | 187 128 Cannons . | . . Explosions . | . . Melee . | . . Ramming 2 | . 2 Kinetic 315 | 187 128 Thermal 24 | . 24 Explosive . | . . Electromagnetic . | . . Impact . | . . Slashing . | . . Piercing . | . . Highest Corruption . | . . Average Corruption . | . . Corruption Purged . | . . Corruption Blocked . | . . Overload Shots . | . . Overflow Damage . | . . Projectiles . | . . Explosions . | . . Melee . | . . Knockbacks . | . . Impact . | . . Kinetic . | . . Secondary . | . . Self-Inflicted Damage . | . . Shots . | . . Rammed . | . . Targets Rammed 1 | . 1 Kicked 1 | . 1 Crushed . | . . Highest Temperature 66 | 20 66 Average Temperature 25 | 14 27 Received Heat Transfer 277 | 40 237 Siege Activations . | . . Robots Corrupted . | . . Combat Hostiles . | . . Parts Fried . | . . Impact Corruptions . | . . Robots Melted . | . . Combat Hostiles . | . . Parts Melted . | . . Heat Transferred 50 | . 50 Parts Sabotaged . | . . Parts Stolen . | . . Parts Stripped . | . . Power Chain Reactions . | . . Alert | -11 -10 ------- Run | Yrd Mat Peak Influence 66 | 45 66 Initial . | . . Average 4 | . 29 Maximum Alert Level . | . . Low Security (%) 100 | 100 100 Level 1 . | . . Level 2 . | . . Level 3 . | . . Level 4 . | . . Level 5 . | . . High Security . | . . Max Security . | . . Squads Dispatched 1 | . 1 Investigation . | . . Extermination . | . . Reinforcement 1 | . 1 Assault . | . . Garrison . | . . Intercept . | . . Searches Triggered . | . . Construction Impeded . | . . Haulers Reinforced . | . . Active Scanning Responses . | . . Cargo Convoy Interrupts . | . . Stealth | -11 -10 --------- Run | Yrd Mat Distress Signals . | . . Communications Jammed . | . . Distress Signals . | . . Times Spotted 23 | 18 5 Peak Tracking Total 15 | 15 2 Tactical Retreats . | . . Traps | -11 -10 ------- Run | Yrd Mat Traps Triggered . | . . Indirectly . | . . Trap Hack Attempts . | . . Triggered . | . . Disarmed . | . . Reprogrammed . | . . Reused . | . . Traps Extracted . | . . Installed . | . . Triggered . | . . Machines | -11 -10 ---------- Run | Yrd Mat Machines Disabled 1 | . 1 Max in Single Turn 1 | . 1 Machines Repaired . | . . Machines Dismantled . | . . Machines Sabotaged . | . . Overloaded Fab Kills . | . . Hacking | -11 -10 --------- Run | Yrd Mat Machines Accessed 3 | . 3 Terminals 3 | . 3 Fabricators . | . . Repair Stations . | . . Recycling Units . | . . Scanalyzers . | . . Garrison Access . | . . Total Hacks 8 | . 8 Successful 3 | . 3 Failed 5 | . 5 Catastrophic . | . . Database Lockouts . | . . Manual . | . . Terminals 8 | . 8 Fabricators . | . . Repair Stations . | . . Recycling Units . | . . Scanalyzers . | . . Garrison Access . | . . Terminal Hacks 3 | . 3 Prototype ID Bank 1 | . 1 Zone Layout 2 | . 2 Fabricator Hacks . | . . Repair Station Hacks . | . . Recycling Unit Hacks . | . . Scanalyzer . | . . Garrison Access Hacks . | . . Unauthorized Hacks . | . . Terminals . | . . Fabricators . | . . Repair Stations . | . . Recycling Units . | . . Scanalyzers . | . . Garrison Access . | . . Data Cores Recovered . | . . Used . | . . Hacking Detections 3 | . 3 Full Trace Events . | . . Feedback Events . | . . Feedback Blocked . | . . Robot Schematics Acquired . | . . Robots Built . | . . Authchips . | . . Time . | . . Total Robot Build Rating . | . . Part Schematics Acquired . | . . Parts Built . | . . Authchips . | . . Time . | . . Total Part Build Rating . | . . Parts Repaired . | . . Time . | . . Parts Recycled . | . . Recycled Matter . | . . Retrieved Matter . | . . Retrieved Components . | . . Parts Scanalyzed . | . . Part Schematics Acquired . | . . Parts Damaged . | . . Bothacking | -11 -10 ------------ Run | Yrd Mat Used RIF Installer . | . . Robots Hacked 5 | . 5 Non-combat 4 | . 4 Combat 1 | . 1 Robot Hacks Applied 7 | . 7 parse_system 2 | . 2 no_distress 3 | . 3 find_recycling 1 | . 1 check_alert 1 | . 1 Relay Couplers Released . | . . Fabnet Peak Effective % . | . . Robots Rewired . | . . Allies Hacked . | . . Hacks Repelled . | . . Allies | -11 -10 -------- Run | Yrd Mat Total Allies . | . . Largest Group . | . . Highest-Rated Group . | . . Highest-Rated Ally . | . . Total Orders . | . . Ally Attacks . | . . Total Damage . | . . Kills . | . . Allies Corrupted . | . . Allies Melted . | . . Intel | -11 -10 ------- Run | Yrd Mat Robot Analysis Total . | . . Derelict Logs Recovered . | . . Drone Launches . | . . Drone Recoveries . | . . Exploration | -11 -10 ------------- Run | Yrd Mat Turns Passed 2925 | 2532 393 Spaces Moved 1805 | 1537 268 Core 77 | 39 38 Treads 707 | 707 . Legs 891 | 661 230 Wheels 130 | 130 . Hover . | . . Flight . | . . Fastest Speed 50 | 50 50 Average Speed 131 | 135 111 Slowest Speed 160 | 160 120 Overloaded Moves . | . . Propulsion Burnouts . | . . Robots Hopped . | . . Cave-ins Triggered . | . . Exploration Rate (%) 55 | 82 28 Regions Visited 1 Branch Regions . Pre-discovered Areas . | . . Known Exits Taken . | . . Unknown Exits Taken 1 | 1 . Scrap Searched . | . . Spaces Dug . | . . Terrain Destroyed 1 | . 1 Melee . | . . Projectile 1 | . 1 AOE . | . . Terrain Rammed . | . . Walls Destroyed . | . . Machines Disabled . | . . Actions | -11 -10 --------- Run | Yrd Mat Total 2287 | 1957 330 Wait 360 | 351 9 Move 1804 | 1536 268 Hop . | . . Pick Up 21 | 13 8 Fast Attach . | . . Attach 20 | 14 6 Detach 2 | 1 1 Swap 5 | 1 4 Drop 2 | 2 . Fire 59 | 39 20 Melee 13 | . 13 Ram . | . . Kick 1 | . 1 Crush . | . . Escape Stasis . | . . Rewire . | . . Trap . | . . Miscellaneous . | . . Route ------- -11/Scrapyard -10/Materials History --------- Turn | Location | Event 24 | -11/Scrapyard | Discovered new exit (range 16) 1467 | -11/Scrapyard | Assembled infested the area 1566 | -11/Scrapyard | Core integrity fell below 50% 1602 | -11/Scrapyard | Lost 3 parts (1p2n) 2533 | -11/Scrapyard | Entered Materials 2534 | -10/Materials | Build established: Mutant 2775 | -10/Materials | Core integrity fell below 20% 2809 | -10/Materials | Lost 3 parts (1p2w) 2926 | -10/Materials | Destroyed by G-34 Mercenary with Small Laser Last Messages --------------- Command string: hack(pls) No effect. Lgt. Ion Engine destroyed. G-47 Trooper suffers critical hit (Destroy). Destroyed Aluminum Leg. G-47 Trooper destroyed. Datajack destroyed. Lgt. Assault Rifle destroyed. K-01 Serf collects debris. Acquired Datajack. Kicked G-34 Mercenary out of the way. Jacked G-34 Mercenary... >>parse_system Reading system data... Aluminum Leg destroyed. Sml. Storage Unit destroyed. Aluminum Leg destroyed. Acquired 55 matter. Acquired Seismic Detector. Acquired Sensor Array. Map ----- +----------------------------------------------------+ | ???????????????????????????????? | | ???????????????????????????????? | | ???????????????????????????????? | | ???????????????????????????????? | | ???????????????????????????????? | | ???????????????????????????????? | | ???????????????????????????????? | | ???????????????????????????????? | | ???????????????????????????????? | | ???????????????????????????????? | | ?????????????????????? ??????? | | ?????????????????????? ?????? | | ?????????????????????? #?????? | | ????????????????????## #?????? | | ??????????????####+## ?????? | | ??????????????# ?????? | | ??????????????# ??????? | | ??????????????# """ ??????? | | ??????????????# k"Y" ??????? | | ??????????????# ######## | | ??????????????# ## # | | ??????????????# ## # | | ??????????#???# """ ## # | | ?????????## ### """ ## # | | ?????????# u """ # # | | ????????## @ # | | ?? w # # | | ?????????###/## g # # | | ??????????????###+######## # | | ??????????????# ## # | | ??????????????# ! ## # | | ??????????????# ## # | | ??????????????# ######## | | ??????????????# #??????? | | ??????????????# """ """ #??????? | | ??????????????# """ """ #??????? | | ???????######## """ """ #??????? | | ???????# #/#########??????? | | ???????# """ # #??????????????? | | ???????# """ # ########???????? | | ???????# """ # #???????? | | ???????# + ######### | | ???????# """ # ## # | | ???????# """ ###### ## # | | ???????# """ !#????# ## # | | ???????# #????# ## # | | ???????########????# ## # | | ???????# #?????# ## """ # | | ???????# #?????# ## """ # | | ???????# """ #????## ## """ # | +----------------------------------------------------+ Best States ------------- Heat Dissipation 25 Energy Generation 10 Energy Capacity 250 Matter Stores 283 Matter Capacity 300 Sight Range 16 Terrain Scan Density 10 Evasion (%) 55 Recoil Reduction 2 Item Schematics ----------------- None Robot Schematics ------------------ None Fabricated ------------ Nothing Alien Tech Used ----------------- None Achievements -------------- Curiosity Killed The Cat Challenges ------------ None Game ------ Seed LongswordExplosiveAirjet Manual? 0 Play Time 00:15:22 Cumulative 6.8 hours Start 2024.04.07 @ 15:39:35 End 2024.04.07 @ 16:10:33 Sessions 1 Manual Loads 0 Difficulty Rogue Special Mode None Game No. 14 Rogue 14 Adventurer 0 Explorer 0 Win Type - Total 0 Types 0/0/0/0/0/0/0/0/0 Lore% 16 Gallery% 13 Achievement% 14 Wizard Run 0 Options --------- Layout 1 ASCII 0 Keyboard 0 Movement Arrows Keybinds 0 Fullscreen 1 Font 24/Smallcaps Map View 50x35 Zoom Use 0% Tactical HUD 0 Map Filters NONE Filters NONE Steam 1 RUN: 539193f9-b235-4431-8895-0f5aa0acf67f